bitfinex-derivatives/quotes_ETHF0:USTF0_20260203
["timestamp","ask_amount","ask_price","bid_price","bid_amount"]
[1770157905375,2.39325839,2271.2,2270.3,2.66002146]
[1770157905573,2.39325839,2271.5,2270.4,0.22052]
[1770157905777,2.39325839,2271.5,2270.6,2.65999146]
[1770157906878,2.39325839,2271.5,2270.6,0.2205]
[1770157907675,2.39325839,2271.5,2270.5,2.585]
[1770157907879,2.39325839,2271.4,2270.3,2.62177192]
[1770157908079,2.39325839,2271.4,2270.1,2.63307181]
[1770157908283,2.39325839,2271.4,2270.2,2.63307181]
[1770157908684,2.39325839,2271.3,2270.2,5.07256327]
[1770157909876,2.39325839,2271.3,2270.2,2.63307181]
[1770157910078,2.39325839,2271.3,2270.1,2.63307181]
[1770157910280,2.39325839,2271.2,2270.0,2.63307181]
[1770157910477,2.39325839,2271.2,2270.1,2.39591345]
[1770157910678,2.39325839,2271.2,2270.1,2.63307181]
[1770157910980,2.39325839,2271.2,2269.9,3.9483088]
[1770157911186,2.58920687,2270.3,2269.1,2.51648121]
[1770157911478,0.22052,2270.4,2267.8,10.05443832]
[1770157911479,2.58920687,2269.9,2268.7,2.51648121]
[1770157911681,2.58920687,2269.6,2268.7,2.51648121]
[1770157911882,9.54374771,2269.5,2268.2,2.51648121]
[1770157912185,3.68654084,2269.4,2268.2,2.51961279]
[1770157912384,3.68654084,2269.3,2268.2,0.00313158]
[1770157912587,5.81976869,2269.5,2267.2,2.51648121]
[1770157912588,2.80985687,2269.0,2267.2,2.51648121]
[1770157912783,0.07698072,2268.6,2267.2,2.51648121]
[1770157912984,0.07698072,2268.5,2267.2,2.51648121]
[1770157913185,3.276,2268.4,2267.2,2.51648121]
[1770157913384,2.58335656,2268.8,2267.3,2.47799084]
[1770157913585,3.279,2268.8,2267.4,2.47799084]
[1770157913783,3.279,2268.8,2267.5,2.47799084]
[1770157913984,3.279,2268.8,2267.6,2.47799084]
[1770157914485,0.07698072,2268.7,2267.6,2.47799084]
[1770157914879,0.27034826,2269.1,2267.6,2.47799084]
[1770157915085,0.04969826,2269.1,2267.9,2.49159637]
[1770157915281,0.04969826,2269.1,2268.1,2.49159637]
[1770157915788,0.00363187,2269.5,2268.6,2.49159637]
[1770157915984,0.04829183,2269.5,2268.0,2.49159637]
[1770157917387,0.00363187,2269.5,2268.4,2.49661024]
[1770157917889,0.00363187,2269.5,2268.6,2.49661024]
[1770157918286,0.00363187,2269.5,2268.6,6.90061024]
[1770157918588,0.00363187,2269.5,2268.3,2.49661024]
[1770157918589,0.03826408,2269.5,2268.3,2.49661024]
[1770157919892,2.58963187,2269.5,2268.3,2.49661024]
[1770157920092,2.58963187,2269.5,2268.5,2.48019931]
[1770157921194,0.00363187,2269.5,2268.5,2.48019931]
[1770157921494,0.00050029,2269.5,2268.9,2.48281223]
[1770157921992,0.06272853,2269.5,2268.3,2.48281223]
[1770157922294,0.06222824,2268.2,2266.7,2.48281223]
[1770157922488,2.64822824,2268.1,2266.7,2.48281223]
[1770157922695,2.64822824,2268.1,2266.7,2.48664824]
[1770157922894,2.586,2268.1,2266.9,2.48461459]
[1770157923093,2.64822824,2268.5,2267.2,2.48461459]
[1770157925498,2.64822824,2268.5,2267.4,2.48586727]
[1770157925901,2.64822824,2268.5,2267.5,2.48586727]
[1770157926290,2.586,2268.5,2267.5,2.48586727]
[1770157926596,0.22069,2268.7,2267.6,2.48586727]
[1770157926899,2.80769,2268.7,2267.6,2.48586727]
[1770157927498,2.82867096,2268.7,2267.6,2.48586727]
[1770157927695,0.02098096,2268.6,2267.6,2.48586727]
[1770157927901,0.24167096,2268.6,2267.1,2.50343587]
[1770157928099,0.24167096,2268.6,2267.2,2.50343587]
[1770157929601,0.24167096,2268.6,2267.3,2.49510397]
[1770157930095,0.24167096,2268.6,2267.2,4.404]
[1770157930096,0.24167096,2268.6,2267.5,4.404]
[1770157930298,0.22069,2268.6,2267.6,2.49510397]
[1770157930904,0.27773302,2268.6,2267.6,2.49510397]
[1770157932102,0.05704302,2268.4,2267.3,2.48540484]
[1770157932502,0.05704302,2268.3,2266.8,2.48540484]
[1770157932703,0.05704302,2268.2,2266.8,2.48540484]
[1770157933098,2.58335656,2269.2,2267.7,2.51162191]
[1770157933303,3.26,2269.3,2267.8,2.51162191]
[1770157933498,0.22063,2269.3,2267.8,2.51162191]
[1770157933698,4.794,2269.2,2267.8,2.51162191]
[1770157934106,4.794,2269.2,2267.9,2.51162191]
[1770157934506,2.03888812,2269.0,2267.0,2.51162191]
[1770157934701,0.22069,2268.7,2267.0,2.73247191]
[1770157934902,4.794,2268.6,2267.2,2.51162191]
[1770157935105,4.794,2268.6,2267.4,2.4754309]
[1770157935507,2.588,2268.5,2267.9,2.4754309]
[1770157936808,0.29766091,2268.9,2267.9,2.4754309]
[1770157937009,4.794,2268.8,2267.9,2.4754309]
[1770157937510,4.794,2268.8,2267.9,6.8794309]
[1770157937803,4.794,2268.8,2267.0,2.40847686]
[1770157937804,0.21089899,2268.6,2267.0,2.40847686]
[1770157938209,0.21089899,2268.4,2267.2,2.40847686]
[1770157938409,0.43160899,2268.4,2267.2,2.40847686]
[1770157938709,0.43162899,2268.2,2267.2,6.81247686]
[1770157938910,0.43162899,2268.2,2267.2,2.40847686]
[1770157939107,5.465,2268.1,2267.4,2.3917736]
[1770157939507,5.465,2268.0,2267.5,4.404]
[1770157939708,5.465,2268.0,2267.4,2.3917736]
[1770157939907,5.465,2268.0,2267.6,4.404]
[1770157940404,2.58335656,2268.4,2267.8,2.3917736]
[1770157940609,5.468,2268.3,2267.8,2.3917736]
[1770157940904,0.34786933,2268.2,2267.4,2.33910768]
[1770157941105,2.80409656,2268.1,2267.1,2.33910768]
[1770157941310,9.12208064,2268.0,2267.2,2.33910768]
[1770157941511,3.65008064,2267.9,2267.2,2.33910768]
[1770157941706,5.473,2267.8,2267.2,6.74310768]
[1770157942007,5.473,2267.8,2267.3,4.404]
[1770157942208,0.34786933,2267.6,2266.0,2.33910768]
[1770157942408,2.93122589,2267.3,2266.2,2.33910768]
[1770157942706,4.00553693,2267.2,2266.2,2.33910768]
[1770157942908,5.478,2267.1,2266.5,4.404]
[1770157943210,5.478,2267.1,2266.5,0.00558871]
[1770157943407,2.58335656,2267.4,2266.8,4.404]
[1770157943712,9.13344952,2267.3,2266.6,6.70410443]
[1770157943912,5.48,2267.3,2266.6,6.70410443]
[1770157944212,5.48,2267.3,2266.8,4.404]
[1770157944612,5.48,2267.3,2266.9,4.404]
[1770157944812,5.488,2267.2,2266.8,4.404]
[1770157945106,5.488,2267.2,2266.6,4.404]
[1770157945306,0.22086,2266.9,2265.6,2.30010443]
[1770157945513,9.13978989,2266.8,2266.0,2.30010443]
[1770157945807,0.44137512,2266.6,2265.7,2.30010443]
[1770157946012,0.44137512,2266.4,2265.3,2.30010443]
[1770157946413,0.44137512,2266.4,2265.3,2.30426352]
[1770157946607,4.08583141,2266.3,2265.4,0.00558871]
[1770157946813,0.49730104,2266.1,2265.4,0.00558871]
[1770157947012,3.292,2266.0,2265.3,0.00415909]
[1770157947209,0.49730104,2265.9,2265.3,0.0097478]
[1770157947410,2.70430104,2265.8,2265.0,2.30010443]
[1770157947609,0.49730104,2265.7,2265.0,0.00558871]
[1770157947810,0.49730104,2265.5,2264.1,2.30010443]
[1770157948009,4.963,2265.4,2264.5,2.30010443]
[1770157948410,4.963,2265.4,2264.6,0.00558871]
[1770157948411,0.49730104,2265.3,2264.6,0.00558871]
[1770157948812,0.71832104,2265.3,2264.5,0.00528984]
[1770157949008,0.22102,2265.3,2263.8,2.30010443]
[1770157949216,5.505,2265.2,2264.4,2.30010443]
[1770157949512,3.16,2265.1,2264.4,2.30010443]
[1770157949716,5.367,2265.1,2264.5,4.404]
[1770157949916,2.652,2265.0,2264.9,4.404]
[1770157950118,2.64784091,2265.0,2264.9,4.40834685]
[1770157950411,2.913,2265.0,2264.9,4.40834685]
[1770157950611,2.90459694,2265.0,2264.9,0.00434685]
[1770157950815,2.90459694,2265.0,2264.4,2.30010443]
[1770157951016,0.47981567,2265.5,2264.4,2.30010443]
[1770157951315,4.796,2265.4,2264.4,2.30010443]
[1770157951511,0.37856557,2265.4,2264.4,2.30010443]
[1770157951716,4.797,2265.3,2264.4,2.3045175]
[1770157952015,4.797,2265.2,2264.4,2.3045175]
[1770157952214,0.37856557,2265.1,2264.4,0.00441307]
[1770157952912,0.37856557,2265.1,2264.1,2.32375956]
[1770157953410,5.325,2265.0,2264.1,2.32375956]
[1770157954011,5.325,2265.0,2264.1,2.32811439]
[1770157954211,0.36083873,2264.9,2264.1,0.00435483]
[1770157954412,0.3564839,2264.5,2263.7,0.00515721]
[1770157954611,0.35132669,2264.3,2262.5,2.337379]
[1770157954812,0.35132669,2264.1,2262.5,2.337379]
[1770157955008,2.56027809,2264.0,2262.5,2.337379]
[1770157955417,2.5648105,2264.0,2262.5,2.34135282]
[1770157956114,0.35227809,2263.9,2262.5,2.34135282]
[1770157956319,0.00453241,2264.0,2262.5,2.56263282]
[1770157956517,2.59,2263.8,2262.5,2.56263282]
[1770157956917,2.94562903,2263.8,2262.5,2.56263282]
[1770157957118,0.00453241,2264.0,2262.5,2.34135282]
[1770157957119,5.15562903,2263.7,2262.5,2.34135282]
[1770157958212,0.35562903,2263.6,2262.5,2.34135282]
[1770157959117,2.26003812,2263.9,2262.5,2.34135282]
[1770157959118,5.32610358,2263.5,2262.5,2.34135282]
[1770157959321,0.34810358,2263.4,2262.5,0.00397382]
[1770157959619,0.34810358,2263.2,2262.5,0.00397382]
[1770157959821,0.2212,2263.4,2262.5,0.00397382]
[1770157960022,5.505,2263.3,2262.5,2.34296438]
[1770157960418,0.34810358,2263.2,2262.5,0.00397382]
[1770157961122,5.505,2263.3,2262.5,0.00397382]
[1770157961329,5.505,2263.3,2262.5,2.33798645]
[1770157961528,0.35805944,2263.2,2262.5,0.00397382]
[1770157962429,0.35805944,2263.1,2261.9,2.33599954]
[1770157963429,5.24210549,2263.0,2261.9,2.33971074]
[1770157963825,0.44010549,2262.9,2261.9,2.33971074]
[1770157964525,0.44010549,2263.4,2261.9,2.33971074]
[1770157964838,2.26007812,2263.5,2261.9,2.33971074]
[1770157964839,0.43189844,2263.0,2261.9,2.33971074]
[1770157965330,0.43189844,2262.9,2261.9,0.0037112]
[1770157965524,0.43189844,2262.9,2261.9,2.30381563]
[1770157965724,5.23489844,2262.8,2261.9,2.30381563]
[1770157966028,4.803,2262.8,2261.9,2.30381563]
[1770157966232,17.51288812,2263.5,2262.1,2.30010443]
[1770157966233,0.43189844,2263.5,2262.1,2.30010443]
[1770157966427,4.803,2263.4,2262.1,2.30010443]
[1770157966929,4.803,2263.3,2262.1,2.30010443]
[1770157967131,4.803,2263.2,2262.1,2.30010443]
[1770157969232,5.32681302,2263.2,2262.1,2.30010443]
[1770157971134,0.57316165,2263.1,2262.1,2.30010443]
[1770157971534,5.221,2263.0,2262.1,2.30010443]
[1770157972435,0.57316165,2263.1,2262.1,2.30010443]
[1770157972729,5.78916165,2263.0,2262.1,2.30010443]
[1770157973234,0.55050039,2262.9,2261.9,0.0037112]
[1770157973433,0.55050039,2262.9,2261.9,2.30578838]
[1770157974434,4.805,2262.8,2261.9,2.30578838]
[1770157974730,2.594,2262.7,2261.9,2.30578838]
[1770157975137,2.211,2262.8,2261.9,2.30578838]
[1770157975332,2.594,2262.8,2261.9,2.30578838]
[1770157976533,2.657,2262.7,2261.9,2.30578838]
[1770157977730,4.813,2262.7,2261.9,2.30578838]
[1770157978035,2.594,2262.6,2261.9,2.30578838]
[1770157979741,2.594,2262.6,2261.9,0.0037112]
[1770157979940,5.497,2262.5,2261.9,0.0037112]
[1770157980336,0.56452703,2262.6,2261.9,0.0037112]
[1770157980535,0.56452703,2262.3,2261.9,0.0037112]
[1770157980741,6.06252703,2262.2,2261.9,0.0037112]
[1770157980943,6.06252703,2262.2,2261.3,2.27420798]
[1770157981139,3.9443542,2262.1,2260.6,2.27420798]
[1770157981342,3.9443542,2262.1,2260.8,2.27420798]
[1770157981343,0.6553542,2262.0,2260.8,2.27420798]
[1770157981538,0.6553542,2262.0,2261.0,2.27420798]
[1770157982245,0.6553542,2262.0,2260.8,2.27420798]
[1770157982636,0.6553542,2261.8,2260.8,2.27420798]
[1770157983037,0.6524164,2261.6,2260.5,2.27420798]
[1770157983238,0.6524164,2261.6,2259.8,2.27420798]
[1770157983239,0.6524164,2261.2,2259.8,2.27420798]
[1770157983444,0.6524164,2261.0,2260.1,0.00477527]
[1770157983639,0.6524164,2260.8,2260.1,0.00477527]
[1770157983839,3.17692839,2261.1,2260.1,2.27898325]
[1770157984046,9.15720214,2261.0,2260.1,2.27898325]
[1770157984246,4.30722068,2260.9,2260.1,0.00477527]
[1770157984445,0.6524164,2260.8,2260.1,0.00477527]
[1770157984645,2.212,2260.9,2260.1,2.27898325]
[1770157984846,3.299,2260.8,2260.3,2.27420798]
[1770157985046,3.299,2260.8,2260.3,2.27791918]
[1770157985239,3.299,2260.8,2260.4,0.0037112]
[1770157985448,0.63707125,2260.7,2260.1,0.00477527]
[1770157985648,0.64241535,2260.7,2260.1,0.00477527]
[1770157985843,0.0053441,2260.7,2260.1,0.00477527]
[1770157986146,5.515,2260.6,2260.1,2.27898325]
[1770157986347,3.304,2260.5,2260.1,2.27898325]
[1770157986544,0.63707125,2260.4,2260.1,0.00477527]
[1770157986748,0.63707125,2260.4,2259.5,2.27420798]
[1770157986948,3.304,2260.3,2259.5,2.27791918]
[1770157987148,3.304,2260.3,2259.6,0.0037112]
[1770157987343,3.304,2260.3,2259.5,2.27420798]
[1770157987548,3.95210655,2260.3,2259.5,2.27791918]
[1770157987848,0.64810655,2260.2,2259.4,2.27420798]
[1770157988042,0.64810655,2260.0,2258.9,0.22196456]
[1770157988240,0.64810655,2259.8,2258.9,0.22196456]
[1770157988548,0.64810655,2260.1,2258.9,2.49988374]
[1770157988752,2.595,2260.1,2259.3,2.27791918]
[1770157988949,4.829,2260.0,2259.3,2.27420798]
[1770157989350,2.627,2259.9,2259.5,2.27420798]
[1770157989852,3.27407592,2259.9,2258.9,2.49617254]
[1770157990053,3.27407592,2259.9,2259.0,2.27791918]
[1770157990351,3.27407592,2259.9,2259.0,2.27420798]
[1770157990556,0.64707592,2259.8,2259.0,2.27420798]
[1770157991155,0.66015388,2260.7,2259.7,2.27791918]
[1770157991349,3.25080978,2260.6,2259.7,2.27420798]
[1770157992752,0.65480978,2260.5,2259.4,2.27420798]
[1770157993655,4.809,2260.4,2259.4,2.27420798]
[1770157994153,0.65480978,2260.5,2259.4,2.27791918]
[1770157994353,2.596,2260.4,2259.6,2.27791918]
[1770157994554,2.596,2260.4,2259.6,2.27420798]
[1770157994754,0.0053441,2260.7,2259.9,2.27420798]
[1770157994956,2.713,2260.6,2259.9,2.27420798]
[1770157995154,0.0053441,2260.7,2260.1,2.27791918]
[1770157995354,2.6013441,2260.7,2260.1,2.27420798]
[1770157995554,2.6013441,2260.7,2260.3,0.0037112]
[1770157996054,2.6013441,2260.7,2260.4,0.0037112]
[1770157996353,2.6013441,2260.7,2260.1,2.27420798]
[1770157996354,0.0053441,2260.7,2260.1,2.27420798]
[1770157996553,0.0053441,2260.7,2260.3,0.0037112]
[1770157996955,2.596,2260.9,2260.1,2.27420798]
[1770157997154,3.68086168,2260.9,2260.3,0.0037112]
[1770157997354,3.68086168,2260.9,2260.0,2.27791918]
[1770157997753,3.68086168,2260.9,2260.2,0.0037112]
[1770157998058,3.30240415,2261.7,2260.7,2.27420798]
[1770157998255,3.3,2261.6,2260.7,2.27420798]
[1770157998450,1.08940415,2261.7,2260.7,2.27791918]
[1770157998658,3.68640415,2261.7,2261.0,0.0037112]
[1770157998859,3.68640415,2261.7,2260.9,2.27420798]
[1770157999054,1.09375265,2261.7,2261.0,0.0037112]
[1770157999352,0.0043485,2261.7,2261.1,0.0037112]
[1770157999553,0.0043485,2261.7,2261.3,2.27791918]
[1770157999755,2.213,2261.9,2261.3,2.27420798]
[1770158000056,2.213,2261.9,2261.3,2.27791918]
[1770158000757,2.21786758,2261.9,2261.3,2.27791918]
[1770158002253,2.21786758,2261.9,2261.4,0.0037112]
[1770158002454,3.297,2262.2,2261.7,0.0037112]
[1770158002654,3.297,2262.2,2261.4,2.36622576]
[1770158002855,1.10486319,2262.7,2261.6,2.36622576]
[1770158003258,3.298,2262.6,2261.8,2.36993696]
[1770158003458,3.3029429,2262.6,2261.8,2.36973997]
[1770158003659,3.3029429,2262.6,2262.0,0.0037112]
[1770158004161,1.10980609,2262.6,2262.1,0.0037112]
[1770158004363,0.0049429,2262.6,2262.1,2.36993696]
[1770158004661,3.3049429,2262.6,2262.3,0.0037112]
[1770158004863,0.0049429,2262.6,2262.3,0.0037112]
[1770158005061,0.0049429,2262.6,2262.4,0.0037112]
[1770158005362,2.213,2262.7,2262.3,0.0037112]
[1770158005656,3.26404856,2262.7,2261.8,2.36973997]
[1770158005857,3.26404856,2262.7,2261.9,0.0037112]
[1770158006260,3.26877614,2262.7,2262.0,0.0037112]
[1770158006661,3.26877614,2262.7,2262.2,0.0037112]
[1770158006963,3.30572758,2262.7,2262.2,2.36993696]
[1770158007163,3.30572758,2262.7,2262.4,0.0037112]
[1770158007363,4.35111628,2262.7,2261.8,2.36973997]
[1770158007762,1.05011628,2262.7,2261.8,2.36973997]
[1770158007963,3.64611628,2262.7,2261.8,2.36973997]
[1770158008957,2.60072758,2262.7,2261.8,2.36973997]
[1770158009268,0.00472758,2262.7,2261.8,2.36973997]
[1770158009766,4.809,2263.0,2261.8,2.36973997]
[1770158010462,2.596,2263.0,2261.8,2.36973997]
[1770158010657,2.59988783,2263.0,2262.0,2.36622576]
[1770158011171,0.00388783,2263.0,2262.0,2.36622576]
[1770158011361,2.59988783,2263.0,2262.0,2.36622576]
[1770158011567,2.59888783,2263.0,2262.0,2.36622576]
[1770158011869,0.00388783,2263.0,2262.0,2.36622576]
[1770158012070,2.59888783,2263.0,2262.0,2.36622576]
[1770158012465,0.00388783,2263.0,2262.3,2.36622576]
[1770158018375,1.06693895,2263.0,2262.0,2.36622576]
[1770158018978,1.06693895,2263.0,2261.8,0.00351421]
[1770158019179,1.06199772,2262.7,2261.8,0.00351421]
[1770158020576,1.28326772,2262.7,2261.8,0.00351421]
[1770158022381,6.5609798,2262.6,2261.8,0.00351421]
[1770158022780,1.0629798,2262.6,2261.8,0.00351421]
[1770158022981,6.56646805,2262.5,2261.8,0.00351421]
[1770158024779,1.06746805,2262.4,2261.8,0.00351421]
[1770158025988,6.5717995,2262.5,2261.8,0.00351421]
[1770158026386,5.499,2262.5,2261.8,2.36973997]
[1770158027687,2.54932793,2262.7,2261.8,2.36973997]
[1770158027883,3.305,2262.6,2261.8,2.36973997]
[1770158028287,2.54932793,2262.8,2261.8,2.36973997]
[1770158028482,3.307,2262.7,2261.8,2.36973997]
[1770158030290,3.311,2262.7,2261.8,2.59109997]
[1770158033584,3.60540912,2263.0,2261.8,2.59109997]
[1770158033790,3.319,2262.9,2262.0,2.42913101]
[1770158034388,0.00388783,2263.0,2262.3,2.36121821]
[1770158035188,2.54932793,2263.3,2262.3,2.36121821]
[1770158035791,3.325,2263.3,2262.7,2.36121821]
[1770158036195,3.32953468,2263.3,2262.7,2.36121821]
[1770158038093,2.54932793,2263.7,2262.7,2.36121821]
[1770158038290,3.331,2263.6,2262.7,2.36121821]
[1770158038490,3.331,2263.5,2262.7,2.36121821]
[1770158038695,0.96982208,2263.7,2262.7,2.36121821]
[1770158038896,3.332,2263.7,2262.7,2.58248821]
[1770158039095,3.33534729,2263.7,2262.7,2.58248821]
[1770158040800,2.54932793,2264.1,2263.4,2.36121821]
[1770158040999,4.30058022,2264.4,2263.4,2.58241821]
[1770158041193,3.51490815,2264.7,2263.6,2.58239821]
[1770158041394,0.96558022,2264.7,2263.8,2.58237821]
[1770158041601,0.96558022,2265.0,2264.0,2.36121821]
[1770158041801,0.97010202,2265.0,2264.0,2.58551399]
[1770158041997,0.96558022,2265.3,2264.2,2.58233821]
[1770158042203,3.51490815,2265.6,2264.4,2.36121821]
[1770158042397,3.337,2265.8,2264.4,2.36121821]
[1770158042603,3.337,2265.8,2264.6,2.58229821]
[1770158043004,2.594,2265.8,2264.6,2.58229821]
[1770158043203,2.598687,2265.8,2264.6,2.58229821]
[1770158043698,0.90879708,2265.7,2264.6,2.36121821]
[1770158046694,0.90879708,2265.7,2264.0,2.36437399]
[1770158046895,0.86541087,2265.5,2264.0,2.36437399]
[1770158047807,0.85837629,2265.4,2264.0,2.36437399]
[1770158048003,0.85837629,2265.2,2264.0,0.00315578]
[1770158048195,0.85837629,2265.0,2264.0,0.00315578]
[1770158049003,0.85837629,2265.0,2263.4,2.36121821]
[1770158050004,0.85837629,2265.0,2263.4,2.36602681]
[1770158050802,0.22106,2264.8,2263.4,2.36602681]
[1770158051002,0.86064452,2264.7,2263.4,2.36602681]
[1770158051198,0.86064452,2264.6,2263.4,0.0048086]
[1770158052107,1.08174452,2264.4,2263.4,0.0048086]
[1770158052308,0.86064452,2264.2,2262.8,2.36121821]
[1770158052804,0.86064452,2264.0,2262.8,2.36121821]
[1770158053405,0.86486016,2264.0,2262.8,2.36565106]
[1770158054812,0.87772917,2263.9,2262.8,2.36565106]
[1770158059414,6.38807129,2263.8,2262.8,2.36565106]
[1770158059616,0.85807129,2263.7,2262.8,2.36565106]
[1770158059815,5.53,2263.8,2262.8,2.36565106]
[1770158060010,0.85807129,2263.9,2262.8,2.36565106]
[1770158060215,3.32421564,2264.0,2262.8,2.36565106]
[1770158063312,0.00421564,2264.0,2262.8,2.36565106]
[1770158063718,0.00421564,2264.0,2262.8,2.58691106]
[1770158068917,0.00421564,2264.0,2263.1,2.38698116]
[1770158078430,0.00421564,2264.0,2263.1,2.60821116]
[1770158081933,2.54932793,2264.3,2263.3,2.38698116]
[1770158082834,0.00479261,2264.3,2263.5,2.38698116]
[1770158087137,2.54932793,2264.6,2263.5,2.38698116]
[1770158087334,0.85560607,2264.6,2263.5,2.60816116]
[1770158087539,0.85560607,2264.5,2263.5,2.60816116]
[1770158087839,4.17460607,2264.4,2263.5,2.38698116]
[1770158088045,4.18023815,2264.4,2263.5,2.38698116]
[1770158088238,0.85560607,2264.3,2263.5,2.38698116]
[1770158088431,0.85560607,2264.1,2263.3,2.38698116]
[1770158089036,3.404934,2264.1,2263.3,2.38698116]
[1770158089231,0.8524775,2264.0,2263.3,2.38698116]
[1770158093742,3.335,2263.9,2263.3,2.38698116]
[1770158094739,3.40767585,2264.2,2263.3,2.38698116]
[1770158095045,3.34,2264.1,2263.3,2.38698116]
[1770158095342,4.19221028,2264.1,2263.3,2.38698116]
[1770158095545,0.85221028,2264.0,2263.3,2.38698116]
[1770158100447,3.40153821,2264.0,2263.3,2.38698116]
[1770158100948,0.82863467,2263.9,2263.3,2.38698116]
[1770158102447,5.93258329,2264.1,2263.1,2.36263915]
[1770158102847,6.76121796,2264.1,2263.1,2.36263915]
[1770158103849,0.89761333,2264.0,2263.1,2.36263915]
[1770158105449,3.386,2263.9,2263.1,2.36263915]
[1770158105745,0.88720288,2263.8,2262.9,2.36263915]
[1770158107742,0.88502183,2263.7,2262.8,0.00443285]
[1770158108143,0.88502183,2263.6,2262.8,0.00443285]
[1770158108945,0.88983324,2263.5,2262.8,0.00443285]
[1770158109149,0.88983324,2263.3,2262.8,0.00443285]
[1770158109350,0.88983324,2263.3,2262.5,2.36263915]
[1770158110450,0.88983324,2263.3,2262.5,2.36658825]
[1770158111243,0.88983324,2263.3,2262.5,0.0039491]
[1770158111449,0.88983324,2263.3,2262.0,2.58397915]
[1770158111750,0.88983324,2263.3,2262.0,2.36263915]
[1770158111751,0.88505373,2263.2,2262.0,2.36263915]
[1770158111950,4.28605373,2263.1,2262.0,2.36263915]
[1770158112649,4.28605373,2263.1,2262.0,2.36670298]
[1770158112849,0.88505373,2263.0,2262.0,2.36670298]
[1770158113350,4.28905373,2263.0,2262.0,2.36670298]
[1770158113655,3.405,2263.3,2262.2,2.36263915]
[1770158115050,0.88787957,2263.2,2262.2,2.36263915]
[1770158115653,1.10909957,2263.2,2262.2,2.36263915]
[1770158115855,0.88787957,2263.0,2262.0,0.00406383]
[1770158116054,1.10911957,2263.0,2262.0,0.00406383]
[1770158116255,3.70414135,2263.0,2262.0,0.00406383]
[1770158116553,0.88787957,2262.9,2262.0,0.00406383]
[1770158116754,1.10912957,2262.9,2262.0,0.00406383]
[1770158118857,1.10912957,2262.9,2261.6,2.36263915]
[1770158119155,0.90068276,2262.8,2261.6,2.36263915]
[1770158119557,0.90068276,2262.6,2261.3,2.36263915]
[1770158119951,0.90503835,2262.6,2261.3,2.36632503]
[1770158124662,0.00435559,2262.6,2261.3,2.36632503]
[1770158125161,0.00435559,2262.6,2261.5,2.4256859]
[1770158125956,0.91662457,2262.6,2261.5,2.4256859]
[1770158128362,0.00435559,2262.6,2261.5,2.4256859]
[1770158128560,1.08239885,2263.0,2262.0,0.22134]
[1770158128755,2.594,2263.1,2262.1,2.4256859]
[1770158129062,4.51375444,2263.2,2262.1,2.4256859]
[1770158129560,4.51884703,2263.2,2262.1,2.4256859]
[1770158129957,0.00509259,2263.2,2262.3,2.4256859]
[1770158135466,0.00509259,2263.2,2262.3,2.6469959]
[1770158136364,1.00492398,2264.1,2262.7,2.4256859]
[1770158136668,1.00492398,2264.1,2263.0,2.4256859]
[1770158137270,4.43041005,2264.1,2263.0,2.43035336]
[1770158138067,2.44018427,2264.1,2263.0,2.43035336]
[1770158138469,0.00448607,2264.1,2263.0,2.43035336]
[1770158140570,0.22117,2263.7,2262.7,2.51909461]
[1770158140778,0.22117,2263.7,2262.0,3.9315881]
[1770158140779,0.22119,2263.5,2262.0,2.51909461]
[1770158140977,3.421,2263.4,2262.0,2.51909461]
[1770158141373,3.6422,2263.4,2262.0,2.51909461]
[1770158141678,0.22121,2263.3,2262.0,2.52473631]
[1770158142674,0.22126,2262.8,2261.5,2.51909461]
[1770158142871,0.22126,2262.8,2261.0,3.9315881]
[1770158142872,5.635,2262.7,2261.0,2.51909461]
[1770158143682,5.635,2262.7,2261.0,2.5236235]
[1770158143881,0.22128,2262.6,2261.0,2.5236235]
[1770158145883,4.805,2262.5,2261.0,2.5236235]
[1770158146179,4.80961944,2262.5,2261.0,2.5236235]
[1770158147382,0.00461944,2262.5,2261.1,0.22142]
[1770158147688,0.00461944,2262.5,2261.2,2.51909461]
[1770158147987,0.00461944,2262.5,2261.5,2.51909461]
[1770158154890,0.00461944,2262.5,2261.4,2.51847932]
[1770158156495,0.00461944,2262.5,2261.6,2.51775394]
[1770158161494,5.03290944,2262.5,2261.1,2.51775394]
[1770158164398,0.22590944,2262.5,2261.1,2.51775394]
[1770158167398,0.22132,2262.2,2261.1,2.51775394]
[1770158169292,2.81634178,2262.2,2261.1,2.51775394]
[1770158170296,2.59502178,2262.1,2261.1,2.51775394]
[1770158170502,3.4,2262.0,2261.1,2.51775394]
[1770158172203,5.99502178,2262.0,2261.1,2.51775394]
[1770158172406,3.4,2262.0,2261.1,2.51775394]
[1770158172998,2.59502178,2261.9,2261.1,2.51775394]
[1770158173305,5.99502178,2262.0,2261.1,2.51775394]
[1770158173606,2.59502178,2262.0,2261.1,2.51775394]
[1770158173806,2.59502178,2262.3,2261.1,2.51775394]
[1770158177304,2.59502178,2262.2,2261.1,2.51775394]
[1770158178510,2.59964122,2262.5,2261.4,2.51775394]
[1770158178704,0.00461944,2262.5,2261.4,2.51775394]
[1770158179511,2.59502178,2262.8,2261.6,2.51775394]
[1770158180503,0.00381238,2262.8,2261.9,2.51733793]
[1770158181608,6.05702178,2263.1,2261.9,2.73867793]
[1770158181814,3.462,2263.2,2262.0,2.51733793]
[1770158182312,3.462,2263.2,2262.0,2.73866793]
[1770158182611,3.46655933,2263.2,2262.0,2.73866793]
[1770158183411,3.48155933,2263.2,2262.0,2.73866793]
[1770158184315,0.00455933,2263.2,2262.2,2.73864793]
[1770158185207,2.59502178,2263.6,2262.4,2.51733793]
[1770158185411,2.59502178,2263.9,2262.6,2.51733793]
[1770158185612,3.485,2263.8,2262.6,2.51733793]
[1770158186110,2.81616178,2264.0,2262.4,2.05125624]
[1770158186111,2.59502178,2264.0,2262.8,2.51733793]
[1770158186312,2.59502178,2264.0,2262.8,2.7423156]
[1770158186313,0.00315136,2264.0,2262.8,2.7423156]
[1770158186708,0.00315136,2264.0,2263.0,2.51733793]
[1770158186910,3.494,2264.3,2263.0,2.51733793]
[1770158187815,2.594,2264.3,2263.2,2.51733793]
[1770158188014,0.00388381,2264.3,2263.2,2.51733793]
[1770158188913,2.594,2264.7,2263.3,2.73854793]
[1770158189113,4.80602178,2265.3,2263.7,2.51733793]
[1770158189313,2.594,2265.2,2263.7,2.51733793]
[1770158189514,2.211,2265.4,2263.7,2.51733793]
[1770158189810,2.594,2265.1,2263.7,2.51733793]
[1770158191715,0.225303,2265.4,2263.7,2.73850793]
[1770158191912,2.594,2265.3,2263.7,2.73850793]
[1770158192113,0.225303,2265.4,2263.7,2.73850793]
[1770158192316,0.004293,2265.4,2263.9,2.51733793]
[1770158192617,2.598293,2265.4,2263.9,2.73848793]
[1770158193411,0.004293,2265.4,2263.9,2.73848793]